fUST/lending_fUST_20260118
["ID","MTS","AMOUNT","RATE_DAILY","PERIOD"]
[402587197,1768714410229,-2679.53345293,0.00012109,2]
[402587198,1768714413401,-4640.94309414,0.00012109,2]
[402587199,1768714413429,-178.055,0.00012244,2]
[402587200,1768714452686,417.2591649,0.00011446,2]
[402587201,1768714463827,225.1,9.47e-05,2]
[402587202,1768714464266,450.19,0.00010331,2]
[402587203,1768714464923,675.29,0.00011192,2]
[402587204,1768714483902,-900.38,0.00012053,2]
[402587205,1768714483932,-3199.25,0.0001212,2]
[402587206,1768714489835,-1800.75,0.0001212,2]
[402587207,1768714547729,196.45,9.395e-05,2]
[402587208,1768714548163,392.9,0.00010249,2]
[402587209,1768714548322,-389.00876281,0.00012109,2]
[402587210,1768714548352,-1556.03505122,0.00012109,2]
[402587211,1768714548383,-2608.84350669,0.00012109,2]
[402587212,1768714548631,589.34,0.00011103,2]
[402587213,1768714554218,-893.64703367,0.00011507,2]
[402587214,1768714554250,-785.79,0.00011957,2]
[402587215,1768714554280,-892.23535856,0.00012109,2]
[402587216,1768714560422,-3782.09393532,0.00012109,2]
[402587217,1768714578898,-1238.41114151,0.00011988,2]
[402587218,1768714609593,-3761.58885849,0.00011988,2]
[402587219,1768714625963,171.45,9.39e-05,2]
[402587220,1768714626369,342.89,0.00010243,2]
[402587221,1768714626783,514.34,0.00011097,2]
[402587222,1768714640554,-685.78,0.00011951,2]
[402587223,1768714642160,5000.0,0.00011831,2]
[402587224,1768714657721,3628.45,0.00011951,2]
[402587225,1768714657749,1371.55,0.00011951,2]
[402587227,1768714695295,-5000.0,0.00011988,2]
[402587228,1768714703571,0.01,0.00011988,2]
[402587229,1768714703597,4999.99,0.00011988,2]
[402587230,1768714703771,287.67,9.391e-05,2]
[402587231,1768714704175,575.33,0.00010244,2]
[402587232,1768714704588,863.0,0.00011098,2]
[402587233,1768714705037,1150.66,0.00011952,2]
[402587234,1768714782192,338.38,9.395e-05,2]
[402587235,1768714782590,676.75,0.00010249,2]
[402587236,1768714783020,1015.13,0.00011103,2]
[402587251,1768714793097,170.4312501,5.683e-05,2]
[402587252,1768714799946,-1353.51,0.00011957,2]
[402587253,1768714862544,345.48,9.606e-05,2]
[402587254,1768714862950,690.96,0.00010479,2]
[402587255,1768714863381,1036.44,0.00011352,2]
[402587256,1768714920681,5000.0,0.00011504,2]
[402587257,1768714920707,294.25,0.000115,2]
[402587258,1768714921272,451.65,0.000115,2]
[402587259,1768714921986,-2435.82212936,0.00011504,2]
[402587260,1768714937090,-5000.0,0.00011868,2]
[402587261,1768714941220,0.01,9.363e-05,2]
[402587262,1768714941247,322.18,9.363e-05,2]
[402587263,1768714941629,644.39,0.00010215,2]
[402587264,1768714942023,966.58,0.00011066,2]
[402587265,1768714943628,5000.0,0.00011868,2]
[402587266,1768714967759,-5000.0,0.0001168,2]
[402587267,1768714998268,-5000.0,0.0001168,2]
[402587268,1768715011332,0.01,0.0001168,2]
[402587269,1768715011363,4999.99,0.0001168,2]
[402587270,1768715019136,371.88,0.00010255,2]
[402587271,1768715028884,-743.76,0.00011187,2]
[402587272,1768715044143,-5000.0,0.0001168,2]
[402587273,1768715056446,0.01,0.0001168,2]
[402587274,1768715056471,4999.99,0.0001168,2]
[402587275,1768715090107,-5000.0,0.00011563,2]
[402587276,1768715097282,-5000.0,0.0001168,2]
[402587277,1768715102115,-5000.0,9.063e-05,2]
[402587278,1768715105407,-357.68,9.155e-05,2]
[402587279,1768715105803,-152.11951346,9.988e-05,2]
[402587280,1768715108405,-210.73383476,9.988e-05,2]
[402587281,1768715111084,-167.2141737,9.988e-05,2]
[402587282,1768715120775,-185.30247808,9.988e-05,2]
[402587283,1768715135652,-5000.0,0.00010712,2]
[402587284,1768715135745,-1073.05,0.0001082,2]
[402587285,1768715166292,-3389.4715742,0.0001142,2]
[402587286,1768715179236,3221.0668516,0.0001142,2]
[402587287,1768715179261,1778.9331484,0.0001142,2]
[402587288,1768715180028,337.11,9.152e-05,2]
[402587289,1768715180486,674.23,9.984e-05,2]
[402587290,1768715181084,1011.34,0.00010816,2]
[402587291,1768715260634,316.67,9.154e-05,2]
[402587292,1768715261063,633.34,9.986e-05,2]
[402587293,1768715261475,950.01,0.00010819,2]
[402587294,1768715339863,292.49,9.139e-05,2]
[402587295,1768715340772,584.97,9.969e-05,2]
[402587296,1768715341193,877.46,0.000108,2]
[402587297,1768715349784,-5000.0,0.0001142,2]
[402587298,1768715420019,336.93,9.141e-05,2]
[402587299,1768715421030,673.86,9.972e-05,2]
[402587300,1768715421771,1010.78,0.00010803,2]
[402587325,1768715432393,-426.03,0.00011306,2]
[402587326,1768715432403,-563.18700882,0.0001142,2]
[402587393,1768715440799,-3e-08,0.00011306,2]
[402587395,1768715440811,-789.72813417,0.00011306,2]
[402587415,1768715440978,-61.7324968,0.0001142,2]
[402588018,1768715447153,-4375.08049438,0.0001142,2]
[402588020,1768715447163,-224.13914533,0.00011594,2]
[402588022,1768715447172,-1347.71,0.00011634,2]
[402588024,1768715447181,-508.53016225,0.0001169,2]
[402588026,1768715447193,-151.0,0.000121,2]
[402588028,1768715447203,-500.0,0.00012134,2]
[402588030,1768715447211,-500.0,0.00012134,2]
[402588032,1768715447221,-500.0,0.00012134,2]
[402588034,1768715447231,-500.0,0.00012134,2]
[402588036,1768715447241,-500.0,0.00012134,2]
[402588038,1768715447250,-500.0,0.00012134,2]
[402588040,1768715447260,-500.0,0.00012134,2]
[402588042,1768715447269,-500.0,0.00012134,2]
[402588044,1768715447279,-500.0,0.00012134,2]
[402588046,1768715447288,-542.88353852,0.00012134,2]
[402588048,1768715447298,-336.10079192,0.00012134,2]
[402588050,1768715447308,-500.0,0.00012134,2]
[402588052,1768715447317,-500.0,0.00012134,2]
[402588054,1768715447326,-500.0,0.00012134,2]
[402588056,1768715447337,-500.0,0.00012134,2]
[402588058,1768715447347,-500.0,0.00012134,2]
[402588060,1768715447357,-500.0,0.00012134,2]
[402588062,1768715447367,-500.0,0.00012134,2]
[402588064,1768715447376,-500.0,0.00012134,2]
[402588066,1768715447386,-500.0,0.00012134,2]
[402588068,1768715447395,-500.0,0.00012134,2]
[402588070,1768715447404,-500.0,0.00012134,2]
[402588072,1768715447414,-500.0,0.00012134,2]
[402588074,1768715447423,-500.0,0.00012134,2]
[402588076,1768715447432,-500.0,0.00012134,2]
[402588078,1768715447442,-500.0,0.00012134,2]
[402588080,1768715447452,-500.0,0.00012134,2]
[402588082,1768715447462,-500.0,0.00012134,2]
[402588084,1768715447471,-500.0,0.00012134,2]
[402588086,1768715447482,-318.10137057,0.00012134,2]
[402588088,1768715447491,-500.0,0.00012134,2]
[402588090,1768715447500,-500.0,0.00012134,2]
[402588092,1768715447510,-500.0,0.00012134,2]
[402588094,1768715447519,-500.0,0.00012134,2]
[402588096,1768715447529,-500.0,0.00012134,2]
[402588098,1768715447541,-300.0,0.00012134,2]
[402588100,1768715447551,-300.0,0.00012134,2]
[402588102,1768715447560,-300.0,0.00012135,2]
[402588103,1768715447570,-5220.24770206,0.00012139,2]
[402588842,1768715499540,360.93,9.153e-05,2]
[402588843,1768715499976,721.86,9.985e-05,2]
[402588844,1768715500384,1082.79,0.00010817,2]
[402588846,1768715578626,333.37,9.143e-05,2]
[402588847,1768715579016,666.74,9.975e-05,2]
[402588848,1768715579949,1000.1,0.00010806,2]
[402588849,1768715659074,307.91,9.167e-05,2]
[402588850,1768715659497,615.82,0.0001,2]
[402588851,1768715659900,923.73,0.00010833,2]
[402588852,1768715737668,284.4,9.883e-05,2]
[402588853,1768715738116,568.8,0.00010782,2]
[402588854,1768715797168,-5000.0,0.00011406,2]
[402588855,1768715803363,-224.33953456,0.00011464,2]
[402588856,1768715803395,-451.27195403,0.0001152,2]
[402588857,1768715803425,-405.90003032,0.0001152,2]
[402588858,1768715803455,-500.0,0.0001152,2]
[402588859,1768715803490,-500.0,0.0001152,2]
[402588860,1768715803523,-500.0,0.0001152,2]
[402588861,1768715803555,-651.82860636,0.0001152,2]
[402588862,1768715803587,-429.68487316,0.0001152,2]
[402588863,1768715806100,-5000.0,0.00011521,2]
[402588864,1768715817659,295.74,9.883e-05,2]
[402588865,1768715818374,591.49,0.00010781,2]
[402588866,1768715896929,284.45,9.912e-05,2]
[402588867,1768715897346,568.9,0.00010814,2]
[402588868,1768715978045,273.59,9.533e-05,2]
[402588869,1768715978461,547.18,0.00010399,2]
[402588870,1768716021482,-616.71703225,0.00011153,2]
[402588871,1768716058198,266.96,9.173e-05,2]
[402588872,1768716058626,533.93,0.00010006,2]
[402588873,1768716065966,-411.6902829,0.0001084,2]
[402588874,1768716070570,-222.90332121,0.0001084,2]
[402588875,1768716073097,-166.29639589,0.0001084,2]
[402588876,1768716136709,254.65,9.557e-05,2]
[402588877,1768716137233,509.31,0.00010426,2]
[402588879,1768716217528,244.93,9.582e-05,2]
[402588880,1768716217933,489.86,0.00010453,2]
[402588881,1768716296660,235.58,9.189e-05,2]
[402588882,1768716297655,471.16,0.00010024,2]
[402588883,1768716305717,-706.74,0.0001086,2]
[402588886,1768716377094,217.59,9.166e-05,2]
[402588887,1768716377480,435.18,9.999e-05,2]
[402588888,1768716377891,652.77,0.00010832,2]
[402588889,1768716413016,-5000.0,0.0001085,2]
[402588890,1768716428254,0.01,0.0001085,2]
[402588891,1768716428281,4999.99,0.0001085,2]
[402588892,1768716446756,-166.7669355,0.00010959,2]
[402588893,1768716446787,-219.85274386,0.00011084,2]
[402588894,1768716446818,-578.0,0.00011266,2]
[402588895,1768716446854,-870.35,0.00011665,2]
[402588896,1768716446886,-800.0,0.00011765,2]
[402588897,1768716446919,-800.0,0.00011777,2]
[402588898,1768716446949,-800.0,0.00011956,2]
[402588899,1768716446979,-300.0,0.00012035,2]
[402588900,1768716447009,-165.995,0.00012036,2]
[402588901,1768716447038,-178.401,0.00012036,2]
[402588902,1768716447572,-3856.14723365,0.00012037,2]
[402588903,1768716449398,-10000.01,0.00012037,2]
[402588904,1768716449507,-10000.01,0.00012037,2]
[402588905,1768716452527,-5000.0,0.00011917,2]
[402588906,1768716452572,-0.01,0.00012037,2]
[402588907,1768716455642,-10000.01,0.00012037,2]
[402588908,1768716455754,-10000.01,0.00012037,2]
[402588909,1768716455859,-10000.01,0.00012037,2]
[402588910,1768716459290,-189.9,9.538e-05,2]
[402588911,1768716460500,-225.84731796,0.00010406,2]
[402588912,1768716460695,152.07409919,0.00015,120]
[402588913,1768716470883,-213.14155788,0.00010302,2]
[402588914,1768716473031,-229.44388595,0.00010302,2]
[402588915,1768716473959,-4557.41455617,0.00010302,2]
[402588916,1768716475409,885.18088766,0.00010199,2]
[402588917,1768716475431,4114.81911234,0.00010199,2]
[402588918,1768716489434,-153.94268204,0.00010406,2]
[402588919,1768716520151,-5000.0,0.0001116,2]
[402588920,1768716520407,-569.69,0.00011273,2]
[402588921,1768716520436,-300.0,0.00012036,2]
[402588922,1768716520517,-3260.64,0.00012037,2]
[402588923,1768716523048,-10000.01,0.00012037,2]
[402588924,1768716529128,-10000.01,0.00012037,2]
[402588925,1768716535889,299.96,9.53e-05,2]
[402588926,1768716545830,-180.937,0.00010293,2]
[402588927,1768716547583,-4819.063,0.00010293,2]
[402588928,1768716547642,-61.924,0.00010397,2]
[402588929,1768716547808,-537.986,0.00010397,2]
[402588930,1768716547838,-899.87,0.00011263,2]
[402588931,1768716547870,-500.0,0.00012036,2]
[402588932,1768716547900,-500.0,0.00012036,2]
[402588933,1768716547928,-513.75517787,0.00012036,2]
[402588934,1768716547961,-500.0,0.00012036,2]
[402588935,1768716547991,-500.0,0.00012036,2]
[402588936,1768716548023,-500.0,0.00012036,2]
[402588937,1768716548054,-500.0,0.00012036,2]
[402588938,1768716548157,-500.0,0.00012036,2]
[402588939,1768716548191,-500.0,0.00012036,2]
[402588940,1768716548222,-500.0,0.00012036,2]
[402588941,1768716548252,-500.0,0.00012036,2]
[402588942,1768716548282,-500.0,0.00012036,2]
[402588943,1768716548312,-500.0,0.00012036,2]
[402588944,1768716548342,-500.0,0.00012036,2]
[402588945,1768716548373,-300.0,0.00012036,2]
[402588946,1768716548647,-96.78764426,0.00012037,2]
[402588947,1768716548670,-2400.01,0.00012037,2]
[402588948,1768716553796,-10000.01,0.00012037,2]
[402588958,1768716559797,-500.0,0.00012036,2]
[402588959,1768716559828,-500.0,0.00012036,2]
[402588960,1768716559858,-500.0,0.00012036,2]
[402588961,1768716559891,-500.0,0.00012036,2]
[402588962,1768716559921,-250.0,0.00012036,2]
[402588963,1768716559955,-500.0,0.00012036,2]
[402588964,1768716559985,-500.0,0.00012036,2]
[402588965,1768716560015,-500.0,0.00012036,2]
[402588966,1768716560045,-500.0,0.00012036,2]
[402588967,1768716560075,-500.0,0.00012036,2]
[402588968,1768716560105,-0.01,0.00012036,2]
[402588969,1768716560214,-499.99,0.00012036,2]
[402588970,1768716560244,-500.0,0.00012036,2]
[402588971,1768716560274,-500.0,0.00012036,2]
[402588972,1768716560304,-500.0,0.00012036,2]
[402588973,1768716560335,-500.0,0.00012036,2]
[402588974,1768716560364,-500.0,0.00012036,2]
[402588975,1768716560561,-500.0,0.00012036,2]
[402588976,1768716560591,-500.0,0.00012036,2]
[402588977,1768716560620,-500.0,0.00012036,2]
[402588978,1768716560649,-500.0,0.00012036,2]
[402588979,1768716560929,-500.0,0.00012036,2]
[402588980,1768716560947,-0.03,0.00012036,2]
[402588981,1768716569148,-5000.0,0.00011916,2]
[402588982,1768716569183,-0.01,0.00012036,2]
[402588983,1768716575065,-532.11246746,0.00012036,2]
[402588984,1768716575103,-8935.78506508,0.00012037,2]
[402588985,1768716615612,361.7,9.521e-05,2]
[402588986,1768716621519,-344.82911405,0.00010387,2]
[402588987,1768716624873,-368.78,0.00010387,2]
[402589002,1768716632514,-9.80088595,0.00010387,2]
[402589004,1768716632524,-391.35700618,0.00011253,2]
[402589033,1768716638652,-693.75299382,0.00011253,2]
[402589034,1768716638662,-5000.0,0.00011917,2]
[402589035,1768716638671,-588.0,0.00011917,2]
[402589036,1768716638680,-1200.0,0.00012035,2]
[402589037,1768716638689,-20821.05436199,0.00012036,2]
[402589038,1768716638700,-6065.63707087,0.00012036,2]
[402589039,1768716638711,-1712.825972,0.00012036,2]
[402589040,1768716638721,-1653.66874956,0.00012036,2]
[402589041,1768716638733,-452.08800627,0.00012036,2]
[402589042,1768716638744,-2593.81310178,0.00012036,2]
[402589043,1768716638755,-967.72451616,0.00012036,2]
[402589045,1768716638767,-757.41174717,0.00012036,2]
[402589047,1768716638777,-500.0,0.00012036,2]
[402589049,1768716638787,-313.89709541,0.00012036,2]
[402589051,1768716638797,-1097.67115742,0.00012037,2]
[402589054,1768716638808,-7369.73825272,0.00012037,2]
[402589056,1768716638826,-703387.33580432,0.00012037,2]
[402589059,1768716638837,-558.0997,0.00012037,2]
[402589111,1768716640990,-1840.03539928,0.00012037,2]
[402589121,1768716641078,-3e-08,0.00012037,2]
[402589674,1768716646729,-9021.07917148,0.00012037,2]
[402591615,1768716695362,391.18,9.235e-05,2]
[402591616,1768716697394,-782.36,0.00010075,2]
[402591617,1768716712675,-1173.55,0.00010914,2]
[402591618,1768716728335,-1564.73,0.00011754,2]
[402591619,1768716728366,-1870.55,0.00011917,2]
[402591620,1768716728427,-2376.57,0.00011917,2]
[402591621,1768716734136,-752.88,0.00011917,2]
[402591622,1768716734169,-300.0,0.00012036,2]
[402591623,1768716734241,-7894.25,0.00012037,2]
[402591624,1768716775696,533.06,9.443e-05,2]
[402591625,1768716785835,-381.69112342,0.00010302,2]
[402591626,1768716786573,-684.41887658,0.00010302,2]
[402591627,1768716786605,-1599.17,0.0001116,2]
[402591628,1768716786636,-432.83224684,0.00011917,2]
[402591629,1768716786728,-4034.10775316,0.00011917,2]
[402591630,1768716786813,-533.06,0.00011917,2]
[402591631,1768716786844,-229.67731114,0.00011976,2]
[402591632,1768716786877,-2132.22,0.00012019,2]
[402591633,1768716786954,-4210.09537772,0.00012035,2]
[402591634,1768716786994,-1587.83426429,0.00012035,2]
[402591635,1768716787027,-500.0,0.00012036,2]
[402591636,1768716787058,-500.0,0.00012036,2]
[402591637,1768716787089,-500.0,0.00012036,2]
[402591638,1768716787120,-500.0,0.00012036,2]
[402591639,1768716787152,-500.0,0.00012036,2]
[402591640,1768716787184,-500.0,0.00012036,2]
[402591641,1768716787216,-324.34147142,0.00012036,2]
[402591642,1768716787309,-175.65852858,0.00012036,2]
[402591643,1768716787340,-500.0,0.00012036,2]
[402591644,1768716787370,-306.37551778,0.00012036,2]
[402591645,1768716787400,-500.0,0.00012036,2]
[402591646,1768716787431,-500.0,0.00012036,2]
[402591647,1768716787461,-500.0,0.00012036,2]
[402591648,1768716787492,-500.0,0.00012036,2]
[402591649,1768716787522,-500.0,0.00012036,2]
[402591650,1768716787552,-500.0,0.00012036,2]
[402591651,1768716787584,-500.0,0.00012036,2]
[402591652,1768716787615,-500.0,0.00012036,2]
[402591653,1768716787727,-500.0,0.00012036,2]
[402591654,1768716787759,-500.0,0.00012036,2]
[402591655,1768716787791,-500.0,0.00012036,2]
[402591656,1768716787823,-500.0,0.00012036,2]
[402591657,1768716787855,-500.0,0.00012036,2]
[402591658,1768716787887,-500.0,0.00012036,2]
[402591659,1768716787921,-500.0,0.00012036,2]
[402591660,1768716787957,-500.0,0.00012036,2]
[402591661,1768716787991,-500.0,0.00012036,2]
[402591662,1768716788025,-500.0,0.00012036,2]
[402591663,1768716788141,-500.0,0.00012036,2]
[402591664,1768716788173,-500.0,0.00012036,2]
[402591665,1768716788207,-500.0,0.00012036,2]
[402591666,1768716788240,-500.0,0.00012036,2]
[402591667,1768716788273,-500.0,0.00012036,2]
[402591668,1768716788305,-500.0,0.00012036,2]
[402591669,1768716788339,-500.0,0.00012036,2]
[402591670,1768716788371,-500.0,0.00012036,2]
[402591671,1768716788406,-500.0,0.00012036,2]
[402591672,1768716788440,-500.0,0.00012036,2]
[402591673,1768716788569,-500.0,0.00012036,2]
[402591674,1768716788603,-500.0,0.00012036,2]
[402591675,1768716788636,-500.0,0.00012036,2]
[402591676,1768716788668,-500.0,0.00012036,2]
[402591677,1768716788702,-500.0,0.00012036,2]
[402591678,1768716788735,-500.0,0.00012036,2]
[402591679,1768716788769,-500.0,0.00012036,2]
[402591680,1768716788805,-500.0,0.00012036,2]
[402591681,1768716788841,-500.0,0.00012036,2]
[402591682,1768716788875,-500.0,0.00012036,2]
[402591683,1768716789302,-500.0,0.00012036,2]
[402591684,1768716789336,-500.0,0.00012036,2]
[402591685,1768716789369,-500.0,0.00012036,2]
[402591686,1768716789403,-500.0,0.00012036,2]
[402591687,1768716789436,-500.0,0.00012036,2]
[402591688,1768716789471,-596.09038662,0.00012036,2]
[402591689,1768716789507,-500.0,0.00012036,2]
[402591690,1768716789540,-500.0,0.00012036,2]
[402591691,1768716789573,-500.0,0.00012036,2]
[402591692,1768716789604,-307.82922676,0.00012036,2]
[402591693,1768716789696,-192.17077324,0.00012036,2]
[402591694,1768716789728,-550.0,0.00012036,2]
[402591695,1768716789760,-500.0,0.00012036,2]
[402591696,1768716789794,-500.0,0.00012036,2]
[402591697,1768716789825,-500.0,0.00012036,2]
[402591698,1768716789856,-500.0,0.00012036,2]
[402591699,1768716789888,-500.0,0.00012036,2]
[402591700,1768716790954,-500.0,0.00012037,2]
[402591701,1768716790979,-3515.66845352,0.00012037,2]
[402591702,1768716791036,-10000.01,0.00012037,2]
[402591703,1768716791051,-10000.01,0.00012037,2]
[402591704,1768716791070,-10000.01,0.00012037,2]
[402591705,1768716791085,-10000.01,0.00012037,2]
[402591706,1768716792516,-10000.01,0.00012037,2]
[402591707,1768716792619,-10000.01,0.00012037,2]
[402591708,1768716792737,-10000.01,0.00012037,2]
[402591709,1768716792888,-10000.01,0.00012037,2]
[402591710,1768716798937,-10000.01,0.00012037,2]
[402591711,1768716799409,-10000.01,0.00012037,2]
[402591712,1768716799545,-10000.01,0.00012037,2]
[402591713,1768716799655,-10000.01,0.00012037,2]
[402591714,1768716804751,-10000.01,0.00012037,2]
[402591715,1768716804852,-10000.01,0.00012037,2]
[402591716,1768716804993,-10000.01,0.00012037,2]
[402591717,1768716805094,-10000.01,0.00012037,2]
[402591718,1768716843129,160.0,4.2e-07,2]
[402591719,1768716844154,160.0,4.2e-07,2]
[402591720,1768716845187,160.0,4.2e-07,2]
[402591721,1768716846301,160.0,4.2e-07,2]
[402591722,1768716847336,160.0,4.2e-07,2]
[402591723,1768716848368,160.0,4.2e-07,2]
[402591724,1768716849455,160.0,4.2e-07,2]
[402591725,1768716850718,160.0,4.2e-07,2]
[402591726,1768716851679,160.0,4.2e-07,2]
[402591727,1768716858173,535.02,9.418e-05,2]
[402591728,1768716872329,-1070.04,0.00010274,2]
[402591729,1768716939534,585.84,9.433e-05,2]
[402591730,1768716948456,-1171.68,0.0001029,2]
[402591731,1768717020395,580.41,9.416e-05,2]
[402591732,1768717025910,-192.60008397,0.00010272,2]
[402591733,1768717037395,-968.20991603,0.00010272,2]
[402591734,1768717100769,596.02,9.195e-05,2]
[402591735,1768717113802,-1192.05,0.00010031,2]
[402591736,1768717129004,-1788.07,0.00010866,2]
[402591737,1768717163091,8970.0,9.6e-05,2]
[402591738,1768717182100,630.06,9.161e-05,2]
[402591739,1768717192677,-211.32881313,9.894e-05,2]
[402591740,1768717193864,-4788.67118687,9.894e-05,2]
[402591741,1768717195267,-221.4711029,9.994e-05,2]
[402591742,1768717208728,-1038.6488971,9.994e-05,2]
[402591743,1768717262214,655.48,9.12e-05,2]
[402591744,1768717266955,-245.85,9.949e-05,2]
[402591745,1768717270043,-1065.11,9.949e-05,2]
[402591746,1768717285528,-5000.0,0.00010719,2]
[402591748,1768717343139,669.15,9.126e-05,2]
[402591749,1768717347041,-1338.31,9.955e-05,2]
[402591753,1768717424179,672.39,9.121e-05,2]
[402591755,1768717432815,-1344.77,9.951e-05,2]
[402591757,1768717487902,-2894.01331604,0.00010612,2]
[402591758,1768717487932,-225.08376492,0.00010752,2]
[402591759,1768717487967,-1744.65583808,0.0001078,2]
[402591760,1768717488114,-272.50416192,0.0001078,2]
[402591761,1768717488145,-300.0,0.0001094,2]
[402591762,1768717488181,-500.0,0.00011136,2]
[402591763,1768717488219,-500.0,0.00011136,2]
[402591764,1768717488251,-500.0,0.00011136,2]
[402591765,1768717488283,-500.0,0.00011136,2]
[402591766,1768717488315,-622.23674396,0.00011136,2]
[402591767,1768717488347,-500.0,0.00011136,2]
[402591768,1768717488382,-500.0,0.00011136,2]
[402591769,1768717488414,-500.0,0.00011136,2]
[402591770,1768717488446,-110.52818824,0.00011136,2]
[402591771,1768717488610,-389.47181176,0.00011136,2]
[402591772,1768717488644,-500.0,0.00011136,2]
[402591773,1768717488675,-500.0,0.00011136,2]
[402591774,1768717488708,-500.0,0.00011136,2]
[402591775,1768717488740,-500.0,0.00011136,2]
[402591776,1768717488775,-500.0,0.00011136,2]
[402591777,1768717488809,-500.0,0.00011136,2]
[402591778,1768717488840,-500.0,0.00011136,2]
[402591779,1768717488871,-500.0,0.00011136,2]
[402591780,1768717488904,-500.0,0.00011136,2]
[402591781,1768717489070,-500.0,0.00011136,2]
[402591782,1768717489105,-500.0,0.00011136,2]
[402591783,1768717489140,-500.0,0.00011136,2]
[402591784,1768717489175,-500.0,0.00011136,2]
[402591785,1768717489210,-500.0,0.00011136,2]
[402591786,1768717489245,-500.0,0.00011136,2]
[402591787,1768717489282,-500.0,0.00011136,2]
[402591788,1768717489316,-306.43949349,0.00011136,2]
[402591789,1768717489350,-500.0,0.00011136,2]
[402591790,1768717489383,-500.0,0.00011136,2]
[402591791,1768717489487,-500.0,0.00011136,2]
[402591792,1768717489520,-500.0,0.00011136,2]
[402591793,1768717489553,-500.0,0.00011136,2]
[402591794,1768717489587,-310.79698914,0.00011136,2]
[402591795,1768717489619,-500.0,0.00011136,2]
[402591796,1768717489652,-500.0,0.00011136,2]
[402591797,1768717489684,-852.0,0.00011138,2]
[402591798,1768717489717,-204.018,0.00011138,2]
[402591799,1768717491092,-8252.1633849,0.00011139,2]
[402591800,1768717491111,-10000.01,0.00011139,2]
[402591801,1768717491143,-1747.8566151,0.00011139,2]
[402591802,1768717491153,-643.86912889,0.00011365,2]
[402591803,1768717491163,-1654.88500521,0.00011527,2]
[402591804,1768717491177,-3719.76777046,0.00011527,2]
[402591805,1768717491186,-2233.63148034,0.00011609,2]
[402591806,1768717491225,-455.91851966,0.00011609,2]
[402591807,1768717491257,-153.0,0.00012037,2]
[402591808,1768717491287,-153.0,0.00012037,2]
[402591809,1768717491317,-153.0,0.00012037,2]
[402591810,1768717491347,-153.0,0.00012037,2]
[402591811,1768717491376,-153.0,0.00012037,2]
[402591812,1768717491406,-153.0,0.00012037,2]
[402591813,1768717491435,-178.98346609,0.00012037,2]
[402591814,1768717491464,-176.0,0.00012037,2]
[402591815,1768717491494,-153.0,0.00012037,2]
[402591816,1768717491525,-176.0,0.00012037,2]
[402591817,1768717491555,-153.0,0.00012037,2]
[402591818,1768717491584,-153.0,0.00012037,2]
[402591819,1768717491613,-153.0,0.00012037,2]
[402591820,1768717491642,-153.0,0.00012037,2]
[402591821,1768717491670,-153.0,0.00012037,2]
[402591822,1768717491700,-153.0,0.00012037,2]
[402591823,1768717491730,-153.0,0.00012037,2]
[402591824,1768717491760,-153.0,0.00012037,2]
[402591825,1768717491791,-153.0,0.00012037,2]
[402591826,1768717491819,-158.0,0.00012037,2]